fUSD/lending_fUSD_20240424
["ID","MTS","AMOUNT","RATE_DAILY","PERIOD"]
[323370452,1713935448056,-150.0,0.00012619,2]
[323370453,1713935448069,-17990.203904,0.00012649,2]
[323370454,1713935448081,-150.0,0.00012679,2]
[323370455,1713935448093,-150.0,0.00012695,2]
[323370456,1713935448106,-9868.08652952,0.00012696,2]
[323370457,1713935448118,-1500.0,0.000127,2]
[323370458,1713935448130,-8295.72879694,0.00012759,2]
[323370459,1713935448145,-940.693682,0.00012759,2]
[323370460,1713935448160,-8753.78142506,0.00012759,2]
[323370461,1713935448172,-150.0,0.00012764,2]
[323370462,1713935448185,-4524.41857494,0.00012768,2]
[323370463,1713935448205,-1436.52759672,0.00012768,2]
[323370469,1713935448263,-273.77749137,0.00012768,2]
[323370610,1713935482748,-415.00430288,8.846e-05,2]
[323370611,1713935482773,-784.99569712,8.846e-05,2]
[323370614,1713935638116,-1000.0,8.846e-05,2]
[323370617,1713936108436,-370.06678389,8.838e-05,2]
[323370618,1713936108461,-162.12456104,8.839e-05,2]
[323370619,1713936108486,-67.80865507,8.846e-05,2]
[323370621,1713936267503,-3.59185156,8.846e-05,2]
[323370622,1713936297064,1071.40050663,8.846e-05,2]
[323370623,1713936321042,1071.40050663,8.846e-05,2]
[323370624,1713936339038,853.60713518,8.846e-05,2]
[323370655,1713936447122,-1000.0,0.00025578,120]
[323370656,1713936447146,-1000.0,0.00025578,30]
[323370657,1713936447170,-652.4,0.00025578,30]
[323370658,1713936447193,-4331.0,0.00025578,120]
[323370659,1713936447215,-188.0,0.00025578,30]
[323370660,1713936447237,-188.0,0.00025578,30]
[323370661,1713936447261,-188.0,0.00025578,30]
[323370662,1713936447283,-200.0,0.00025578,30]
[323370663,1713936447310,-3130.61791005,0.00025578,60]
[323370664,1713936447332,-1000.0,0.00025578,30]
[323370665,1713936447354,-1000.0,0.00025578,30]
[323370666,1713936447376,-1000.0,0.00025578,120]
[323370667,1713936447398,-1000.0,0.00025578,30]
[323370668,1713936447421,-1000.0,0.00025578,120]
[323370669,1713936447443,-1000.0,0.00025578,60]
[323370670,1713936447467,-1000.0,0.00025578,30]
[323370671,1713936447489,-1000.0,0.00025578,30]
[323370672,1713936447511,-1000.0,0.00025578,30]
[323370673,1713936447534,-1000.0,0.00025578,60]
[323370674,1713936447558,-1000.0,0.00025578,30]
[323370675,1713936447580,-1000.0,0.00025578,30]
[323370676,1713936447604,-1000.0,0.00025578,30]
[323370677,1713936447627,-1000.0,0.00025578,120]
[323370678,1713936447649,-1000.0,0.00025578,30]
[323370679,1713936447671,-2000.0,0.00025578,30]
[323370680,1713936447693,-2000.0,0.00025578,30]
[323370681,1713936447716,-2000.0,0.00025578,30]
[323370682,1713936447737,-2000.0,0.00025578,30]
[323370683,1713936447759,-2000.0,0.00025578,30]
[323370684,1713936447781,-2000.0,0.00025578,30]
[323370685,1713936447805,-2000.0,0.00025578,30]
[323370686,1713936447826,-2000.0,0.00025578,30]
[323370687,1713936447849,-2000.0,0.00025578,30]
[323370688,1713936447871,-2000.0,0.00025578,30]
[323370689,1713936447892,-2000.0,0.00025578,30]
[323370690,1713936447915,-2000.0,0.00025578,30]
[323370691,1713936447936,-2000.0,0.00025578,30]
[323370692,1713936447958,-2000.0,0.00025578,30]
[323370693,1713936447979,-2000.0,0.00025578,30]
[323370694,1713936448002,-2000.0,0.00025578,30]
[323370695,1713936448024,-2000.0,0.00025578,30]
[323370696,1713936448046,-2000.0,0.00025578,30]
[323370697,1713936448067,-2000.0,0.00025578,30]
[323370698,1713936448089,-1000.0,0.00025578,30]
[323370699,1713936448111,-2000.0,0.00025578,30]
[323370700,1713936448133,-2000.0,0.00025578,30]
[323370701,1713936448155,-2000.0,0.00025578,30]
[323370702,1713936448176,-2000.0,0.00025578,30]
[323370703,1713936448198,-2000.0,0.00025578,30]
[323370704,1713936448220,-2000.0,0.00025578,30]
[323370705,1713936448245,-2000.0,0.00025578,30]
[323370706,1713936448267,-2000.0,0.00025578,30]
[323370707,1713936448291,-2000.0,0.00025578,30]
[323370708,1713936448312,-2000.0,0.00025578,30]
[323370709,1713936448333,-2000.0,0.00025578,30]
[323370710,1713936448356,-2000.0,0.00025578,30]
[323370711,1713936448378,-2000.0,0.00025578,30]
[323370712,1713936448402,-2000.0,0.00025578,30]
[323370713,1713936448423,-2000.0,0.00025578,30]
[323370714,1713936448445,-2000.0,0.00025578,30]
[323370715,1713936448468,-2000.0,0.00025578,30]
[323370716,1713936448489,-2000.0,0.00025578,30]
[323370717,1713936448511,-2000.0,0.00025578,30]
[323370718,1713936448537,-2000.0,0.00025578,30]
[323370719,1713936448559,-2000.0,0.00025578,30]
[323370720,1713936448583,-2000.0,0.00025578,30]
[323370721,1713936448606,-1000.0,0.00025578,30]
[323370722,1713936448629,-2000.0,0.00025578,30]
[323370723,1713936448651,-2000.0,0.00025578,30]
[323370724,1713936448673,-2000.0,0.00025578,30]
[323370725,1713936448695,-2000.0,0.00025578,30]
[323370726,1713936448719,-2000.0,0.00025578,30]
[323370727,1713936448745,-2000.0,0.00025578,30]
[323370728,1713936448768,-2000.0,0.00025578,30]
[323370729,1713936448793,-2000.0,0.00025578,30]
[323370730,1713936449080,-2000.0,0.00025578,30]
[323370731,1713936449104,-2000.0,0.00025578,30]
[323370732,1713936449127,-2000.0,0.00025578,30]
[323370733,1713936449151,-2000.0,0.00025578,30]
[323370734,1713936449175,-2000.0,0.00025578,30]
[323370735,1713936449198,-2000.0,0.00025578,30]
[323370736,1713936449222,-2000.0,0.00025578,30]
[323370737,1713936449247,-2000.0,0.00025578,30]
[323370738,1713936449270,-2000.0,0.00025578,30]
[323370739,1713936449294,-2000.0,0.00025578,30]
[323370740,1713936449317,-2000.0,0.00025578,30]
[323370741,1713936449339,-2000.0,0.00025578,30]
[323370742,1713936449362,-2000.0,0.00025578,30]
[323370743,1713936449384,-2000.0,0.00025578,30]
[323370744,1713936449406,-1000.0,0.00025578,60]
[323370745,1713936449428,-2000.0,0.00025578,30]
[323370746,1713936449450,-2000.0,0.00025578,30]
[323370747,1713936449474,-2000.0,0.00025578,30]
[323370748,1713936449497,-2000.0,0.00025578,30]
[323370749,1713936449520,-2000.0,0.00025578,30]
[323370750,1713936449547,-2000.0,0.00025578,30]
[323370751,1713936449569,-2000.0,0.00025578,30]
[323370752,1713936449594,-2000.0,0.00025578,30]
[323370753,1713936449620,-1000.0,0.00025578,60]
[323370754,1713936449645,-1000.0,0.00025578,60]
[323370755,1713936449667,-1000.0,0.00025578,30]
[323370756,1713936449689,-1000.0,0.00025578,30]
[323370757,1713936449711,-1000.0,0.00025578,30]
[323370758,1713936449734,-1000.0,0.00025578,60]
[323370759,1713936449756,-966.0,0.00025578,30]
[323370760,1713936449778,-1000.0,0.00025578,60]
[323370761,1713936449802,-1000.0,0.00025578,60]
[323370762,1713936449823,-1000.0,0.00025578,120]
[323370763,1713936449846,-1000.0,0.00025578,60]
[323370764,1713936449869,-1000.0,0.00025578,120]
[323370765,1713936449894,-1000.0,0.00025578,120]
[323370766,1713936449915,-1062.22,0.00025578,30]
[323370767,1713936449938,-1000.0,0.00025578,30]
[323370768,1713936449961,-1000.0,0.00025578,30]
[323370769,1713936449983,-1000.0,0.00025578,30]
[323370770,1713936450007,-1000.0,0.00025578,30]
[323370771,1713936450029,-1000.0,0.00025578,30]
[323370772,1713936450053,-1000.0,0.00025578,30]
[323370773,1713936450075,-1000.0,0.00025578,30]
[323370774,1713936450097,-1000.0,0.00025578,30]
[323370775,1713936450120,-1000.0,0.00025578,30]
[323370776,1713936450142,-1000.0,0.00025578,30]
[323370777,1713936450166,-1000.0,0.00025578,30]
[323370778,1713936450188,-1000.0,0.00025578,30]
[323370779,1713936450212,-1000.0,0.00025578,30]
[323370780,1713936450235,-1000.0,0.00025578,30]
[323370781,1713936450258,-1000.0,0.00025578,30]
[323370782,1713936450280,-1000.0,0.00025578,30]
[323370783,1713936450304,-1000.0,0.00025578,30]
[323370784,1713936450325,-1000.0,0.00025578,30]
[323370785,1713936450347,-1000.0,0.00025578,30]
[323370786,1713936450369,-1000.0,0.00025578,30]
[323370787,1713936450391,-1000.0,0.00025578,30]
[323370788,1713936450412,-1000.0,0.00025578,30]
[323370789,1713936450436,-1000.0,0.00025578,30]
[323370790,1713936450458,-1000.0,0.00025578,30]
[323370791,1713936450481,-1000.0,0.00025578,30]
[323370792,1713936450503,-1000.0,0.00025578,30]
[323370793,1713936450526,-1000.0,0.00025578,30]
[323370794,1713936450554,-1000.0,0.00025578,30]
[323370795,1713936450577,-1000.0,0.00025578,30]
[323370796,1713936450600,-1000.0,0.00025578,30]
[323370797,1713936450624,-1000.0,0.00025578,30]
[323370798,1713936450646,-1000.0,0.00025578,30]
[323370799,1713936450669,-1000.0,0.00025578,30]
[323370800,1713936450691,-1000.0,0.00025578,30]
[323370801,1713936450713,-349.84817391,0.00025578,30]
[323370802,1713936450735,-176.0,0.00025578,30]
[323370803,1713936450757,-200.0,0.00025578,30]
[323370804,1713936450779,-176.0,0.00025578,30]
[323370805,1713936450803,-500.0,0.00025578,30]
[323370806,1713936450825,-500.0,0.00025578,30]
[323370807,1713936450848,-627.0,0.00025578,30]
[323370808,1713936450870,-1031.50713535,0.00025578,60]
[323370809,1713936450892,-477.14654333,0.00025578,30]
[323370810,1713936450914,-3258.999997,0.00025578,120]
[323370811,1713936450937,-356.60748959,0.00025578,30]
[323370812,1713936450960,-1500.64689183,0.00025578,30]
[323370813,1713936450982,-824.22781287,0.00025578,30]
[323370814,1713936451004,-2201.73041542,0.00025578,30]
[323370815,1713936451027,-365.88079653,0.00025578,120]
[323370816,1713936451050,-1814.61286974,0.00025578,30]
[323370817,1713936451073,-8457.24798583,0.00025578,30]
[323370818,1713936451095,-690.20234784,0.00025578,30]
[323370819,1713936451117,-714.42439694,0.00025578,30]
[323370820,1713936451140,-166.57455896,0.00025578,120]
[323370821,1713936451162,-2500.0,0.00025578,30]
[323370822,1713936451184,-414.98966791,0.00025578,30]
[323370823,1713936451206,-513.98740454,0.00025578,120]
[323370824,1713936451229,-248.69802199,0.00025578,30]
[323370825,1713936451251,-363.91610866,0.00025578,30]
[323370826,1713936451273,-934.34438429,0.00025578,120]
[323370827,1713936451295,-807.33238803,0.00025578,30]
[323370828,1713936451317,-1334.87697294,0.00025578,120]
[323370829,1713936451339,-815.05440405,0.00025578,30]
[323370830,1713936451362,-651.72154415,0.00025578,30]
[323370831,1713936451385,-1197.35160489,0.00025578,120]
[323370832,1713936451408,-1954.48612866,0.00025578,120]
[323370833,1713936451432,-676.24044968,0.00025578,60]
[323370834,1713936451644,-195.02139782,0.00025578,30]
[323370835,1713936451667,-906.97940879,0.00025578,30]
[323370836,1713936451689,-1035.08820998,0.00025578,120]
[323370837,1713936451711,-329.00580519,0.00025578,30]
[323370838,1713936451734,-684.22152666,0.00025578,30]
[323370839,1713936451756,-206.99640868,0.00025578,120]
[323370840,1713936451779,-2780.51229098,0.00025578,120]
[323370841,1713936451802,-403.1505429,0.00025578,30]
[323370842,1713936451824,-152.24524346,0.00025578,120]
[323370843,1713936451846,-1108.07090099,0.00025578,30]
[323370844,1713936451868,-281.12152928,0.00025578,120]
[323370845,1713936451890,-348.01514735,0.00025578,30]
[323370846,1713936451912,-548.60184832,0.00025578,120]
[323370847,1713936451935,-1155.45705813,0.00025578,120]
[323370848,1713936451957,-1034.31957324,0.00025578,30]
[323370849,1713936451979,-255.21203932,0.00025578,30]
[323370850,1713936452001,-1830.02525051,0.00025578,30]
[323370851,1713936452025,-834.26972642,0.00025578,30]
[323370852,1713936452048,-2409.99625741,0.00025578,30]
[323370853,1713936452070,-9782.70491857,0.00025578,120]
[323370854,1713936452094,-933.50456864,0.00025578,120]
[323370855,1713936452117,-190.69323113,0.00025578,30]
[323370856,1713936452140,-278.74447943,0.00025578,120]
[323370857,1713936452162,-1183.41409026,0.00025578,30]
[323370858,1713936452186,-1226.04624699,0.00025578,120]
[323370859,1713936452209,-224.70631379,0.00025578,120]
[323370860,1713936452231,-249.77020769,0.00025578,30]
[323370861,1713936452254,-1632.72585693,0.00025578,120]
[323370862,1713936452277,-349.75351716,0.00025578,120]
[323370863,1713936452303,-1308.39877799,0.00025578,30]
[323370864,1713936452326,-864.74173577,0.00025578,120]
[323370865,1713936452349,-678.08077288,0.00025578,30]
[323370866,1713936452371,-267.62776107,0.00025578,120]
[323370867,1713936452394,-930.03969002,0.00025578,120]
[323370868,1713936452416,-459.62751768,0.00025578,120]
[323370869,1713936452438,-650.84552519,0.00025578,30]
[323370870,1713936452461,-1373.42418861,0.00025578,30]
[323370871,1713936452483,-7299.999999,0.00025578,30]
[323370872,1713936452505,-1079.61397931,0.00025578,30]
[323370873,1713936452530,-1051.70064721,0.00025578,30]
[323370874,1713936452553,-2044.40256821,0.00025578,30]
[323370875,1713936452575,-1085.24487016,0.00025578,120]
[323370876,1713936452599,-151.11501812,0.00025578,30]
[323370877,1713936452623,-5556.26832296,0.00025578,30]
[323370878,1713936452645,-21933.91770197,0.00025578,30]
[323370879,1713936452667,-4468.6971263,0.00025578,120]
[323370880,1713936452691,-391.8757,0.00025578,30]
[323370881,1713936452713,-1323.57121378,0.00025578,30]
[323370882,1713936452736,-511.0,0.00025578,30]
[323370883,1713936452759,-4832.0,0.00025578,30]
[323370884,1713936452782,-38240.32391336,0.00025578,30]
[323370885,1713936452810,-925.44072446,0.00025578,120]
[323370886,1713936452834,-14313.77424495,0.00025578,30]
[323370903,1713936632140,-162.12456104,9.203e-05,2]
[323370904,1713936632149,-289.68,9.204e-05,2]
[323370905,1713936632159,-412.61,0.00011022,2]
[323370906,1713936632168,-500.0,0.00011022,2]
[323370907,1713936632178,-600.3005769,0.00011022,2]
[323370908,1713936632193,-307.5894231,0.00011022,2]
[323370909,1713936632202,-1000.0,0.00011022,2]
[323370910,1713936632211,-168.01,0.00011035,2]
[323370911,1713936632221,-162.59,0.00011038,2]
[323370912,1713936632230,-152.35,0.00011302,2]
[323370913,1713936632240,-152.35,0.000114,2]
[323370914,1713936632249,-289.68,0.00011468,2]
[323370915,1713936632259,-499.99,0.00011468,2]
[323370916,1713936632268,-1435.5535888,0.00011468,2]
[323370917,1713936632327,-19.8064112,0.00011468,2]
[323370918,1713936632337,-152.35,0.00011499,2]
[323370919,1713936632346,-152.74,0.00011576,2]
[323370920,1713936632355,-152.35,0.00011597,2]
[323370921,1713936632365,-152.74,0.00011605,2]
[323370922,1713936632375,-152.74,0.00011634,2]
[323370923,1713936632385,-389.887,0.00011647,2]
[323370924,1713936632394,-195.0,0.00011647,2]
[323370925,1713936632403,-2195.18730155,0.00011682,2]
[323370931,1713936632470,-852.94314479,0.00011682,2]
[323370935,1713936632497,-6687.54697176,0.00011682,2]
[323371001,1713936640438,-893.88417787,0.00011682,2]
[323371002,1713936640455,-980.705,0.00011682,2]
[323371024,1713936643350,-152.35,0.00011695,2]
[323371025,1713936643360,-152.35,0.00011793,2]
[323371026,1713936643369,-167.96,0.00011849,2]
[323371027,1713936643379,-236.51827636,0.00011877,2]
[323371028,1713936643389,-10906.97313569,0.00011877,2]
[323371029,1713936643398,-858.11948021,0.00011879,3]
[323371030,1713936643408,-152.35,0.00011891,2]
[323371031,1713936643418,-798.43910773,0.00012118,6]
[323371032,1713936643517,-10272.61089227,0.00012118,6]
[323371033,1713936643527,-16051.74,0.00012118,6]
[323371034,1713936643536,-19514.87011693,0.00012199,2]
[323371035,1713936643546,-1000.0,0.000122,2]
[323371036,1713936643556,-1000.0,0.000122,2]
[323371037,1713936643565,-1000.0,0.000122,2]
[323371038,1713936643575,-1000.0,0.000122,2]
[323371039,1713936643585,-1000.0,0.000122,2]
[323371040,1713936643595,-1000.0,0.000122,2]
[323371041,1713936643607,-1000.0,0.000122,2]
[323371042,1713936643616,-1000.0,0.000122,2]
[323371043,1713936643626,-1000.0,0.000122,2]
[323371045,1713936643636,-1000.0,0.000122,2]
[323371047,1713936643646,-1000.0,0.000122,2]
[323371048,1713936643655,-1000.0,0.000122,2]
[323371049,1713936643664,-1000.0,0.000122,2]
[323371050,1713936643675,-1000.0,0.000122,2]
[323371051,1713936643685,-1000.0,0.000122,2]
[323371052,1713936643696,-1000.0,0.000124,2]
[323371053,1713936643706,-162.59,0.00012418,2]
[323371054,1713936643715,-251.64589912,0.000125,2]
[323371055,1713936643724,-500.0,0.00012666,2]
[323371056,1713936643734,-116638.3549631,0.00012755,2]
[323371057,1713936643743,-5971.0496333,0.00012759,2]
[323371058,1713936643752,-16927.5458011,0.00012759,2]
[323371059,1713936643762,-470.2774765,0.00012759,2]
[323371060,1713936643771,-302.5848,0.00012768,2]
[323371061,1713936643780,-3839.002,0.00012768,2]
[323371062,1713936643789,-732.9441,0.00012768,2]
[323371063,1713936643799,-1644.68108829,0.00012776,2]
[323371064,1713936643808,-3687.17502261,0.00012776,2]
[323371065,1713936643817,-1033.52449998,0.00012776,2]
[323371066,1713936643826,-372.00556234,0.00012776,2]
[323371067,1713936643835,-1644.68108825,0.00012787,2]
[323371068,1713936643843,-442.7739937,0.00012789,2]
[323371069,1713936643852,-1644.68108825,0.00012799,2]
[323371070,1713936643861,-237.155955,0.000128,2]
[323371071,1713936643870,-1000.0,0.000128,2]
[323371072,1713936643880,-155.0,0.000128,2]
[323371073,1713936643889,-1870.04361601,0.00012808,2]
[323371074,1713936643900,-13785.49,0.00012809,2]
[323371075,1713936643909,-13785.49,0.00012809,2]
[323371076,1713936643918,-13785.49,0.00012809,2]
[323371077,1713936643927,-13785.49,0.00012809,2]
[323371078,1713936643937,-13785.49,0.00012809,2]
[323371079,1713936643949,-13785.49,0.00012809,2]
[323371080,1713936643958,-13785.49,0.00012809,2]
[323371081,1713936643967,-13785.49,0.00012809,2]
[323371082,1713936643977,-3147.15228896,0.00012809,2]
[323371136,1713937832408,-404.80228358,9.627e-05,2]
[323371137,1713937832418,-162.12456104,9.628e-05,2]
[323371138,1713937832428,-313.81446006,9.629e-05,2]
[323371139,1713937832438,-370.06678389,9.629e-05,2]
[323371140,1713937832449,-273.11,9.642e-05,2]
[323371141,1713937832459,-165.61,0.00011404,2]
[323371152,1713937832770,-697.27,0.00011439,2]
[323371153,1713937832780,-152.73,0.00011443,2]
[323371155,1713937832790,-162.59,0.00011472,2]
[323371157,1713937832799,-9595.75,0.0001156,2]
[323371159,1713937832809,-150.0,0.00011564,2]
[323371161,1713937832818,-600.0,0.00011606,2]
[323371163,1713937832827,-1724.2391,0.00011728,2]
[323371164,1713937832837,-197.88,0.00011769,2]
[323371166,1713937832846,-400.0,0.00011825,2]
[323371168,1713937832856,-435.0,0.00011832,2]
[323371170,1713937832865,-807.0,0.00011832,2]
[323371171,1713937832875,-195.0,0.00011832,2]
[323371173,1713937832883,-5724.0,0.00011832,2]
[323371175,1713937832892,-3976.691,0.00011832,2]
[323371177,1713937832902,-150.0,0.00011832,2]
[323371179,1713937832911,-150.0,0.00011832,2]
[323371180,1713937832920,-21205.954,0.00011832,2]
[323371182,1713937832929,-150.0,0.00011832,2]
[323371184,1713937832938,-150.677,0.00011832,2]
[323371186,1713937832947,-273.11,0.00011906,2]
[323371188,1713937832956,-2750.0,0.00012,2]
[323371190,1713937832968,-19514.87011693,0.00012,2]
[323371191,1713937832977,-1008.0,0.000126,2]
[323371193,1713937832986,-1794.86399176,0.00012653,2]
[323371195,1713937832995,-774.5258,0.00012655,2]
[323371197,1713937833004,-13145.9089,0.00012655,2]
[323371199,1713937833014,-164.03,0.00012665,2]
[323371200,1713937833023,-321.33639199,0.00012679,2]
[323371202,1713937833032,-1432.66496731,0.000127,2]
[323371206,1713937833060,-12376.84941022,0.000127,2]
[323371208,1713937833071,-253.92241788,0.000127,2]
[323371210,1713937833084,-2407.94347744,0.000127,2]
[323371213,1713937833106,-308.807424,0.000127,2]
[323371215,1713937833117,-317.65,0.000127,2]
[323371217,1713937833128,-643.59914021,0.000127,2]
[323371219,1713937833140,-1015.83173565,0.000127,2]
[323371221,1713937833152,-5532.24478997,0.000127,2]
[323371222,1713937833168,-833.79793316,0.000127,2]
[323371224,1713937833179,-318.86689986,0.000127,2]
[323371226,1713937833189,-1290.90309334,0.000127,2]
[323371228,1713937833201,-341.48088377,0.000127,2]
[323371230,1713937833213,-659.47,0.000127,2]
[323371233,1713937833231,-299.66504719,0.000127,2]
[323371234,1713937833242,-469.63521555,0.000127,2]
[323371235,1713937833271,-9226.2257356,0.000127,2]
[323371236,1713937833281,-162.79,0.00012751,2]
[323371237,1713937833290,-419.16,0.00012751,2]
[323371238,1713937833301,-150.0,0.00012751,2]
[323371239,1713937833310,-442.115,0.00012774,3]
[323371240,1713937833319,-1887.33,0.00012774,2]
[323371241,1713937833328,-1887.33,0.00012774,2]
[323371242,1713937833338,-1887.33,0.00012774,2]
[323371243,1713937833347,-1887.33,0.00012774,2]
[323371244,1713937833356,-1887.33,0.00012774,2]
[323371245,1713937833365,-1887.33,0.00012774,2]
[323371246,1713937833374,-1887.33,0.00012774,2]
[323371247,1713937833383,-1887.33,0.00012774,2]
[323371248,1713937833394,-1887.33,0.00012774,2]
[323371249,1713937833405,-1887.33,0.00012774,2]
[323371250,1713937833414,-1887.33,0.00012774,2]
[323371251,1713937833425,-1887.33,0.00012774,2]
[323371252,1713937833435,-1887.33,0.00012774,2]
[323371253,1713937833445,-1887.33,0.00012774,2]
[323371254,1713937833455,-1887.33,0.00012774,2]
[323371255,1713937833466,-1887.33,0.00012774,2]
[323371256,1713937833476,-1887.33,0.00012774,2]
[323371257,1713937833486,-1887.33,0.00012774,2]
[323371258,1713937833495,-1887.33,0.00012774,2]
[323371259,1713937833503,-1887.33,0.00012774,2]
[323371260,1713937833513,-1887.33,0.00012774,2]
[323371261,1713937833522,-216.68534084,0.00012774,2]
[323371262,1713937833542,-1670.64465916,0.00012774,2]
[323371263,1713937833551,-1887.33,0.00012774,2]
[323371264,1713937833560,-1887.41,0.00012774,2]
[323371265,1713937833569,-1468.55345312,0.00012776,2]
[323371266,1713937833578,-4739.10013332,0.00012776,2]
[323371267,1713937833608,-660.722,0.00012776,2]
[323371268,1713937833621,-309.31034047,0.00012776,2]
[323371279,1713937838297,-1500.0,9.626e-05,2]
[323371280,1713937838306,-18487.0828161,0.00012776,2]
[323371281,1713937838315,-181.24590361,0.00012787,2]
[323371282,1713937838351,-1287.30754943,0.00012787,2]
[323371283,1713937838361,-1468.55345304,0.00012799,2]
[323371284,1713937838370,-4321.10388518,0.000128,2]
[323371285,1713937838410,-9352.89611482,0.000128,2]
[323371286,1713937838419,-20000.0,0.000128,2]
[323371287,1713937838428,-155.0,0.000128,2]
[323371288,1713937838436,-1744.70843983,0.00012807,2]
[323371289,1713937838445,-328.27059578,0.00012807,2]
[323371290,1713937838454,-1071.40050663,0.00012809,2]
[323371291,1713937838462,-926.50177,0.00012809,2]
[323371292,1713937838471,-1468.55345304,0.0001281,2]
[323371293,1713937838480,-1000.0,0.0001281,2]
[323371294,1713937838489,-1000.0,0.0001281,2]
[323371295,1713937838498,-1000.0,0.0001281,2]
[323371296,1713937838506,-1000.0,0.0001281,2]
[323371297,1713937838515,-1000.0,0.0001281,2]
[323371298,1713937838524,-1000.0,0.0001281,2]
[323371299,1713937838533,-1000.0,0.0001281,2]
[323371300,1713937838542,-1000.0,0.0001281,2]
[323371301,1713937838551,-1000.0,0.0001281,2]
[323371302,1713937838560,-1000.0,0.0001281,2]
[323371303,1713937838569,-1000.0,0.0001281,2]
[323371304,1713937838579,-1000.0,0.0001281,2]
[323371305,1713937838588,-1000.0,0.0001281,2]
[323371306,1713937838598,-1000.0,0.0001281,2]
[323371307,1713937838607,-1000.0,0.0001281,2]
[323371308,1713937838616,-1000.0,0.0001281,2]
[323371309,1713937838625,-1000.0,0.0001281,2]
[323371310,1713937838634,-1000.0,0.0001281,2]
[323371311,1713937838644,-1000.0,0.0001281,2]
[323371312,1713937838654,-1000.0,0.0001281,2]
[323371314,1713937838663,-1000.0,0.0001281,2]
[323371316,1713937838672,-1000.0,0.0001281,2]
[323371318,1713937838681,-1000.0,0.0001281,2]
[323371320,1713937838690,-1000.0,0.0001281,2]
[323371321,1713937838700,-1000.0,0.0001281,2]
[323371322,1713937838709,-1000.0,0.0001281,2]
[323371323,1713937838718,-1000.0,0.0001281,2]
[323371324,1713937838727,-1000.0,0.0001281,2]
[323371325,1713937838736,-1000.0,0.0001281,2]
[323371326,1713937838745,-1000.0,0.0001281,2]
[323371327,1713937838755,-1000.0,0.0001281,2]
[323371328,1713937838764,-1000.0,0.0001281,2]
[323371329,1713937838774,-1000.0,0.0001281,2]
[323371330,1713937838783,-1000.0,0.0001281,2]
[323371331,1713937838793,-1000.0,0.0001281,2]
[323371332,1713937838802,-1468.55345304,0.00012821,2]
[323371333,1713937838811,-1000.0,0.00012821,2]
[323371334,1713937838821,-1000.0,0.00012821,2]
[323371335,1713937838830,-1000.0,0.00012821,2]
[323371336,1713937838840,-35.64366362,0.00012821,2]
[323371337,1713937838853,-964.35633638,0.00012821,2]
[323371338,1713937838862,-491.87141844,0.00012821,2]
[323371339,1713937838906,-508.12858156,0.00012821,2]
[323371340,1713937838915,-1000.0,0.00012821,2]
[323371341,1713937838925,-1000.0,0.00012821,2]
[323371342,1713937838934,-1000.0,0.00012821,2]
[323371343,1713937838944,-1000.0,0.00012821,2]
[323371344,1713937838954,-1000.0,0.00012821,2]
[323371345,1713937838963,-1000.0,0.00012821,2]
[323371346,1713937838972,-1468.55345304,0.00012832,2]
[323371347,1713937838983,-1468.55345304,0.00012844,2]
[323371348,1713937838992,-2109.7042,0.00012853,2]
[323371349,1713937839002,-173.042412,0.00012854,2]
[323371350,1713937839011,-1468.55345304,0.00012855,2]
[323371351,1713937839021,-225.042412,0.00012864,2]
[323371352,1713937839030,-781.07343554,0.00012866,2]
[323371353,1713937839040,-155.22947299,0.00012866,2]
[323371354,1713937839049,-1599.57614959,0.00012866,2]
[323371355,1713937839059,-2327.94533073,0.00012866,2]
[323371356,1713937839068,-156.36771689,0.00012866,2]
[323371357,1713937839077,-3915.8854324,0.00012866,2]
[323371358,1713937839086,-3774.36711205,0.00012866,2]
[323371359,1713937839095,-263.95861987,0.00012866,2]